fUST/lending_fUST_20240727
["ID","MTS","AMOUNT","RATE_DAILY","PERIOD"]
[333368089,1722075048796,-620.26,0.00014246,2]
[333368091,1722075048922,-2657.5,0.00014246,2]
[333368093,1722075048932,-500.0,0.00014246,2]
[333368094,1722075048943,-151.0,0.00014246,2]
[333368095,1722075048953,-500.0,0.00014246,2]
[333368097,1722075048963,-151.0,0.00014246,2]
[333368098,1722075048973,-500.0,0.00014246,2]
[333368099,1722075048982,-1646.35,0.00014246,2]
[333368101,1722075048992,-678.24,0.00014246,2]
[333368102,1722075049002,-676.875,0.00014247,2]
[333368103,1722075049012,-162.5,0.00014247,2]
[333368105,1722075049022,-151.0,0.00014255,2]
[333368106,1722075049032,-575.20775726,0.00014331,2]
[333368107,1722075049042,-150.112233,0.000144,2]
[333368109,1722075049053,-150.112233,0.000144,2]
[333368110,1722075049065,-603.0,0.000144,2]
[333368111,1722075049075,-200.0,0.0001442,2]
[333368113,1722075049086,-1000.0,0.00014426,2]
[333368114,1722075049096,-2453.68293364,0.00014436,2]
[333368115,1722075049106,-1889.2791628,0.00014456,2]
[333368116,1722075049117,-150.112233,0.000145,2]
[333368117,1722075049127,-150.112233,0.000145,2]
[333368119,1722075049137,-736.93,0.0001452,2]
[333368120,1722075049148,-500.0,0.0001452,2]
[333368121,1722075049158,-151.0,0.0001452,2]
[333368123,1722075049168,-151.0,0.0001452,2]
[333368124,1722075049180,-336.86075708,0.0001452,2]
[333368125,1722075049190,-500.0,0.0001452,2]
[333368127,1722075049201,-500.0,0.0001452,2]
[333368128,1722075049211,-664.43,0.0001452,2]
[333368129,1722075049222,-1156.56,0.0001452,2]
[333368131,1722075049233,-500.0,0.0001452,2]
[333368132,1722075049244,-352.6,0.0001452,2]
[333368133,1722075049254,-451.11322421,0.0001452,2]
[333368134,1722075049265,-500.0,0.0001452,2]
[333368135,1722075049275,-500.0,0.0001452,2]
[333368136,1722075049284,-579.98,0.0001452,2]
[333368137,1722075049295,-500.0,0.0001452,2]
[333368138,1722075049304,-500.0,0.0001452,2]
[333368139,1722075049315,-598.78,0.0001452,2]
[333368140,1722075049325,-619.23,0.0001452,2]
[333368141,1722075049335,-733.76,0.0001452,2]
[333368142,1722075049345,-500.0,0.0001452,2]
[333368143,1722075049356,-500.0,0.0001452,2]
[333368144,1722075049366,-500.0,0.0001452,2]
[333368145,1722075049376,-929.95,0.0001452,2]
[333368146,1722075049386,-500.0,0.0001452,2]
[333368147,1722075049397,-577.97919935,0.0001452,2]
[333368148,1722075049408,-1016.99,0.0001452,2]
[333368149,1722075049418,-792.56,0.0001452,2]
[333368150,1722075049433,-151.0,0.0001452,2]
[333368151,1722075049443,-151.0,0.0001452,2]
[333368152,1722075049454,-500.0,0.0001452,2]
[333368153,1722075049465,-500.0,0.0001452,2]
[333368154,1722075049475,-1166.75,0.0001452,2]
[333368155,1722075049486,-908.42,0.0001452,2]
[333368156,1722075049497,-590.84,0.0001452,2]
[333368157,1722075049509,-500.0,0.0001452,2]
[333368158,1722075049519,-500.0,0.0001452,2]
[333368159,1722075049531,-151.0,0.0001452,2]
[333368160,1722075049542,-594.61,0.0001452,2]
[333368161,1722075049553,-500.0,0.0001452,2]
[333368162,1722075049564,-151.0,0.0001452,2]
[333368163,1722075049574,-396.55196556,0.0001452,2]
[333368164,1722075049585,-500.0,0.0001452,2]
[333368165,1722075049596,-500.0,0.0001452,2]
[333368166,1722075049607,-500.0,0.0001452,2]
[333368167,1722075049617,-877.06,0.0001452,2]
[333368168,1722075049628,-151.0,0.0001452,2]
[333368169,1722075049638,-500.0,0.0001452,2]
[333368170,1722075049649,-151.0,0.0001452,2]
[333368171,1722075049659,-506.39694489,0.0001452,2]
[333368172,1722075049669,-151.0,0.0001452,2]
[333368173,1722075049678,-4384.68,0.0001452,2]
[333368174,1722075049688,-151.0,0.0001452,2]
[333368175,1722075049698,-1285.58,0.0001452,2]
[333368176,1722075049709,-928.85,0.0001452,2]
[333368177,1722075049719,-179.607442,0.0001452,2]
[333368178,1722075049729,-151.0,0.0001452,2]
[333368179,1722075049738,-179.607442,0.0001452,2]
[333368180,1722075049747,-1072.14,0.0001452,2]
[333368181,1722075049758,-500.0,0.0001452,2]
[333368182,1722075049768,-1918.81,0.0001452,2]
[333368183,1722075049779,-500.0,0.0001452,2]
[333368184,1722075049790,-500.0,0.0001452,2]
[333368185,1722075049801,-500.0,0.0001452,2]
[333368186,1722075049813,-1603.87,0.0001452,2]
[333368187,1722075049827,-541.25,0.0001452,2]
[333368188,1722075049838,-6917.34,0.0001452,2]
[333368189,1722075049848,-500.0,0.0001452,2]
[333368190,1722075049858,-500.0,0.0001452,2]
[333368191,1722075049868,-500.0,0.0001452,2]
[333368192,1722075049878,-3168.04,0.0001452,2]
[333368193,1722075049889,-1064.65,0.0001452,2]
[333368194,1722075049899,-500.0,0.0001452,2]
[333368195,1722075049911,-243.70941437,0.0001452,2]
[333368196,1722075049921,-1430.94,0.0001452,2]
[333368197,1722075049932,-2202.23,0.0001452,2]
[333368198,1722075049943,-640.32,0.0001452,2]
[333368199,1722075049953,-1833.72,0.0001452,2]
[333368200,1722075049964,-786.3,0.0001452,2]
[333368201,1722075049975,-500.0,0.0001452,2]
[333368202,1722075049986,-716.42,0.0001452,2]
[333368203,1722075050000,-500.0,0.0001452,2]
[333368204,1722075050011,-500.0,0.0001452,2]
[333368205,1722075050021,-611.75,0.0001452,2]
[333368206,1722075050031,-1350.04,0.0001452,2]
[333368207,1722075050043,-500.0,0.0001452,2]
[333368208,1722075050056,-1512.56,0.0001452,2]
[333368209,1722075050066,-563.05702714,0.0001452,2]
[333368210,1722075050076,-809.85,0.0001452,2]
[333368211,1722075050087,-652.09,0.0001452,2]
[333368212,1722075050099,-500.0,0.0001452,2]
[333368213,1722075050110,-618.71,0.0001452,2]
[333368214,1722075050119,-981.28,0.0001452,2]
[333368215,1722075050131,-2141.38,0.0001452,2]
[333368216,1722075050142,-522.09,0.0001452,2]
[333368217,1722075050152,-508.53529551,0.0001452,2]
[333368218,1722075050161,-1299.52,0.0001452,2]
[333368219,1722075050172,-500.0,0.0001452,2]
[333368220,1722075050182,-894.06,0.0001452,2]
[333368221,1722075050192,-1018.98,0.0001452,2]
[333368222,1722075050203,-728.95,0.0001452,2]
[333368223,1722075050213,-506.58431825,0.0001452,2]
[333368224,1722075050225,-714.09,0.0001452,2]
[333368225,1722075050235,-1085.31,0.0001452,2]
[333368226,1722075050247,-1080.39,0.0001452,2]
[333368227,1722075050258,-506.5967466,0.0001452,2]
[333368228,1722075050267,-500.0,0.0001452,2]
[333368229,1722075050278,-500.0,0.0001452,2]
[333368230,1722075050288,-500.0,0.0001452,2]
[333368231,1722075050298,-879.1,0.0001452,2]
[333368232,1722075050309,-500.0,0.0001452,2]
[333368233,1722075050321,-1751.88,0.0001452,2]
[333368234,1722075050331,-1385.03,0.0001452,2]
[333368235,1722075050340,-1796.01,0.0001452,2]
[333368236,1722075050351,-500.0,0.0001452,2]
[333368237,1722075050362,-656.36,0.0001452,2]
[333368238,1722075050371,-500.0,0.0001452,2]
[333368239,1722075050381,-500.0,0.0001452,2]
[333368240,1722075050392,-742.6,0.0001452,2]
[333368241,1722075050405,-1185.24,0.0001452,2]
[333368242,1722075050415,-2214.71,0.0001452,2]
[333368243,1722075050430,-504.57399334,0.0001452,2]
[333368244,1722075050442,-620.26,0.0001452,2]
[333368245,1722075050453,-2657.5,0.0001452,2]
[333368246,1722075050463,-500.0,0.0001452,2]
[333368247,1722075050474,-500.0,0.0001452,2]
[333368248,1722075050483,-1646.35,0.0001452,2]
[333368249,1722075050493,-678.24,0.0001452,2]
[333368250,1722075050504,-500.0,0.00014616,7]
[333368251,1722075050514,-155.0,0.0001465,2]
[333368252,1722075050525,-2512.87254076,0.0001469,2]
[333368253,1722075050537,-925.85793837,0.0001469,2]
[333368254,1722075050547,-1878.97692067,0.0001469,2]
[333368255,1722075050558,-1011.39369225,0.0001469,2]
[333368256,1722075050568,-335.41648324,0.0001469,2]
[333368257,1722075050577,-1908.80801578,0.0001469,2]
[333368258,1722075050587,-154.68290005,0.0001469,2]
[333368259,1722075050597,-151.0,0.0001469,2]
[333368260,1722075050606,-151.0,0.0001469,2]
[333368261,1722075050618,-150.112233,0.000147,2]
[333368262,1722075050629,-150.112233,0.000147,2]
[333368263,1722075050641,-2000.0,0.00014794,2]
[333368264,1722075050651,-736.93,0.00014794,2]
[333368265,1722075050660,-500.0,0.00014794,2]
[333368266,1722075050670,-500.0,0.00014794,2]
[333368267,1722075050680,-500.0,0.00014794,2]
[333368268,1722075050689,-664.43,0.00014794,2]
[333368269,1722075050698,-1156.56,0.00014794,2]
[333368270,1722075050707,-500.0,0.00014794,2]
[333368271,1722075050718,-151.34241,0.00014794,2]
[333368272,1722075050728,-500.0,0.00014794,2]
[333368273,1722075050737,-500.0,0.00014794,2]
[333368274,1722075050747,-151.0,0.00014794,2]
[333368275,1722075050756,-151.0,0.00014794,2]
[333368276,1722075050766,-579.98,0.00014794,2]
[333368277,1722075050775,-500.0,0.00014794,2]
[333368278,1722075050785,-500.0,0.00014794,2]
[333368279,1722075050794,-598.78,0.00014794,2]
[333368280,1722075050804,-151.0,0.00014794,2]
[333368281,1722075050813,-151.0,0.00014794,2]
[333368282,1722075050823,-151.0,0.00014794,2]
[333368283,1722075050832,-619.23,0.00014794,2]
[333368284,1722075050841,-733.76,0.00014794,2]
[333368285,1722075050850,-151.0,0.00014794,2]
[333368286,1722075050860,-500.0,0.00014794,2]
[333368287,1722075050869,-500.0,0.00014794,2]
[333368288,1722075050878,-500.0,0.00014794,2]
[333368289,1722075050887,-929.95,0.00014794,2]
[333368290,1722075050897,-454.93027161,0.00014794,2]
[333368291,1722075050906,-1016.99,0.00014794,2]
[333368292,1722075050915,-792.56,0.00014794,2]
[333368293,1722075050925,-281.3053282,0.00014794,2]
[333368294,1722075050934,-500.0,0.00014794,2]
[333368295,1722075050943,-1166.75,0.00014794,2]
[333368296,1722075050953,-908.42,0.00014794,2]
[333368297,1722075050962,-590.84,0.00014794,2]
[333368298,1722075050972,-500.0,0.00014794,2]
[333368299,1722075050982,-500.0,0.00014794,2]
[333368300,1722075050991,-594.61,0.00014794,2]
[333368301,1722075051001,-500.0,0.00014794,2]
[333368302,1722075051012,-500.0,0.00014794,2]
[333368303,1722075051023,-500.0,0.00014794,2]
[333368304,1722075051032,-641.14884925,0.00014794,2]
[333368305,1722075051043,-877.06,0.00014794,2]
[333368306,1722075051052,-151.0,0.00014794,2]
[333368307,1722075051063,-500.0,0.00014794,2]
[333368308,1722075051074,-151.0,0.00014794,2]
[333368309,1722075051083,-4384.68,0.00014794,2]
[333368310,1722075051092,-151.0,0.00014794,2]
[333368311,1722075051102,-1285.58,0.00014794,2]
[333368312,1722075051112,-928.85,0.00014794,2]
[333368313,1722075051122,-151.0,0.00014794,2]
[333368314,1722075051131,-179.607442,0.00014794,2]
[333368315,1722075051142,-179.607442,0.00014794,2]
[333368316,1722075051152,-1072.14,0.00014794,2]
[333368317,1722075051162,-500.0,0.00014794,2]
[333368318,1722075051171,-1918.81,0.00014794,2]
[333368319,1722075051181,-500.0,0.00014794,2]
[333368320,1722075051191,-500.0,0.00014794,2]
[333368321,1722075051201,-151.0,0.00014794,2]
[333368322,1722075051210,-571.40123641,0.00014794,2]
[333368323,1722075051220,-1603.87,0.00014794,2]
[333368324,1722075051230,-541.25,0.00014794,2]
[333368325,1722075051240,-6917.34,0.00014794,2]
[333368326,1722075051250,-500.0,0.00014794,2]
[333368327,1722075051259,-500.0,0.00014794,2]
[333368328,1722075051268,-500.0,0.00014794,2]
[333368329,1722075051278,-3168.04,0.00014794,2]
[333368330,1722075051287,-1064.65,0.00014794,2]
[333368331,1722075051297,-500.0,0.00014794,2]
[333368332,1722075051306,-415.40742,0.00014794,2]
[333368333,1722075051317,-1430.94,0.00014794,2]
[333368334,1722075051326,-2202.23,0.00014794,2]
[333368335,1722075051335,-415.40742,0.00014794,2]
[333368336,1722075051347,-640.32,0.00014794,2]
[333368337,1722075051356,-1833.72,0.00014794,2]
[333368338,1722075051367,-786.3,0.00014794,2]
[333368339,1722075051377,-152.228824,0.00014794,2]
[333368340,1722075051387,-538.072234,0.00014794,2]
[333368341,1722075051396,-286.950984,0.00014794,2]
[333368342,1722075051406,-152.228824,0.00014794,2]
[333368343,1722075051416,-538.072234,0.00014794,2]
[333368344,1722075051430,-500.0,0.00014794,2]
[333368345,1722075051442,-716.42,0.00014794,2]
[333368346,1722075051454,-500.0,0.00014794,2]
[333368347,1722075051463,-500.0,0.00014794,2]
[333368348,1722075051474,-611.75,0.00014794,2]
[333368349,1722075051484,-1350.04,0.00014794,2]
[333368350,1722075051494,-923.059716,0.00014794,2]
[333368351,1722075051506,-923.059716,0.00014794,2]
[333368352,1722075051516,-500.0,0.00014794,2]
[333368353,1722075051526,-1512.56,0.00014794,2]
[333368354,1722075051535,-809.85,0.00014794,2]
[333368355,1722075051545,-652.09,0.00014794,2]
[333368356,1722075051555,-500.0,0.00014794,2]
[333368357,1722075051566,-618.71,0.00014794,2]
[333368358,1722075051576,-981.28,0.00014794,2]
[333368359,1722075051586,-2141.38,0.00014794,2]
[333368360,1722075051595,-522.09,0.00014794,2]
[333368361,1722075051605,-1299.52,0.00014794,2]
[333368362,1722075051615,-500.0,0.00014794,2]
[333368363,1722075051626,-894.06,0.00014794,2]
[333368364,1722075051639,-1018.98,0.00014794,2]
[333368365,1722075051648,-728.95,0.00014794,2]
[333368366,1722075051658,-151.0,0.00014794,2]
[333368367,1722075051669,-714.09,0.00014794,2]
[333368368,1722075051681,-1085.31,0.00014794,2]
[333368369,1722075051693,-1080.39,0.00014794,2]
[333368370,1722075051705,-500.0,0.00014794,2]
[333368371,1722075051716,-302.34994974,0.00014794,2]
[333368372,1722075051726,-500.0,0.00014794,2]
[333368373,1722075051736,-879.1,0.00014794,2]
[333368374,1722075051746,-267.081974,0.00014794,2]
[333368375,1722075051757,-564.56947294,0.00014794,2]
[333368376,1722075051767,-267.081974,0.00014794,2]
[333368377,1722075051777,-1751.88,0.00014794,2]
[333368378,1722075051787,-339.271234,0.00014794,2]
[333368379,1722075051797,-1385.03,0.00014794,2]
[333368380,1722075051807,-339.271234,0.00014794,2]
[333368381,1722075051819,-1796.01,0.00014794,2]
[333368382,1722075051829,-438.32633923,0.00014794,2]
[333368383,1722075051839,-656.36,0.00014794,2]
[333368384,1722075051850,-151.0,0.00014794,2]
[333368385,1722075051860,-641.94865096,0.00014794,2]
[333368386,1722075051870,-500.0,0.00014794,2]
[333368387,1722075051881,-742.6,0.00014794,2]
[333368388,1722075051891,-1185.24,0.00014794,2]
[333368389,1722075051902,-2214.71,0.00014794,2]
[333368390,1722075051912,-620.26,0.00014794,2]
[333368391,1722075051922,-2657.5,0.00014794,2]
[333368392,1722075051932,-500.0,0.00014794,2]
[333368393,1722075051941,-151.0,0.00014794,2]
[333368394,1722075051951,-500.0,0.00014794,2]
[333368395,1722075051960,-151.0,0.00014794,2]
[333368396,1722075051970,-1646.35,0.00014794,2]
[333368397,1722075051979,-678.24,0.00014794,2]
[333368398,1722075051988,-150.112233,0.000148,2]
[333368399,1722075051997,-150.112233,0.000148,2]
[333368400,1722075052007,-150.112233,0.000149,2]
[333368401,1722075052017,-2845.83479683,0.00015,2]
[333368402,1722075052027,-1044.2992156,0.00015,2]
[333368403,1722075052036,-2126.92721387,0.00015,2]
[333368404,1722075052046,-1825.81828679,0.00015,2]
[333368405,1722075052057,-150.112233,0.00015,2]
[333368406,1722075052066,-158140.914814,0.00015,2]
[333368407,1722075052077,-313.40359778,0.00015,2]
[333368408,1722075052087,-151.0,0.00015058,2]
[333368409,1722075052097,-151.0,0.00015058,2]
[333368410,1722075052106,-736.93,0.00015068,2]
[333368411,1722075052116,-500.0,0.00015068,2]
[333368412,1722075052125,-500.0,0.00015068,2]
[333368413,1722075052135,-664.43,0.00015068,2]
[333368414,1722075052144,-1156.56,0.00015068,2]
[333368415,1722075052154,-500.0,0.00015068,2]
[333368416,1722075052163,-500.0,0.00015068,2]
[333368417,1722075052173,-500.0,0.00015068,2]
[333368418,1722075052183,-579.98,0.00015068,2]
[333368419,1722075052193,-500.0,0.00015068,2]
[333368420,1722075052319,-500.0,0.00015068,2]
[333368421,1722075052330,-598.78,0.00015068,2]
[333368422,1722075052340,-619.23,0.00015068,2]
[333368423,1722075052350,-733.76,0.00015068,2]
[333368424,1722075052359,-151.0,0.00015068,2]
[333368425,1722075052369,-500.0,0.00015068,2]
[333368426,1722075052379,-500.0,0.00015068,2]
[333368427,1722075052389,-295.46436202,0.00015068,2]
[333368428,1722075052398,-500.0,0.00015068,2]
[333368429,1722075052408,-929.95,0.00015068,2]
[333368430,1722075052418,-1016.99,0.00015068,2]
[333368431,1722075052432,-792.56,0.00015068,2]
[333368432,1722075052441,-151.0,0.00015068,2]
[333368433,1722075052451,-151.0,0.00015068,2]
[333368434,1722075052461,-500.0,0.00015068,2]
[333368435,1722075052472,-1166.75,0.00015068,2]
[333368436,1722075052482,-908.42,0.00015068,2]
[333368437,1722075052492,-590.84,0.00015068,2]
[333368438,1722075052504,-429.45514898,0.00015068,2]
[333368439,1722075052513,-500.0,0.00015068,2]
[333368440,1722075052523,-151.0,0.00015068,2]
[333368441,1722075052532,-594.61,0.00015068,2]
[333368442,1722075052541,-500.0,0.00015068,2]
[333368443,1722075052550,-500.0,0.00015068,2]
[333368444,1722075052560,-500.0,0.00015068,2]
[333368445,1722075052570,-877.06,0.00015068,2]
[333368446,1722075052580,-500.0,0.00015068,2]
[333368447,1722075052590,-4384.68,0.00015068,2]
[333368448,1722075052600,-1285.58,0.00015068,2]
[333368449,1722075052610,-928.85,0.00015068,2]
[333368450,1722075052622,-1072.14,0.00015068,2]
[333368451,1722075052633,-500.0,0.00015068,2]
[333368452,1722075052645,-500.0,0.00015068,2]
[333368453,1722075052656,-1918.81,0.00015068,2]
[333368454,1722075052666,-500.0,0.00015068,2]
[333368455,1722075052676,-1603.87,0.00015068,2]
[333368456,1722075052685,-541.25,0.00015068,2]
[333368457,1722075052695,-500.0,0.00015068,2]
[333368458,1722075052706,-6917.34,0.00015068,2]
[333368459,1722075052717,-500.0,0.00015068,2]
[333368460,1722075052728,-500.0,0.00015068,2]
[333368461,1722075052737,-3168.04,0.00015068,2]
[333368462,1722075052749,-1064.65,0.00015068,2]
[333368463,1722075052760,-500.0,0.00015068,2]
[333368464,1722075052770,-1430.94,0.00015068,2]
[333368465,1722075052780,-2202.23,0.00015068,2]
[333368466,1722075052790,-640.32,0.00015068,2]
[333368467,1722075052799,-1833.72,0.00015068,2]
[333368468,1722075052809,-786.3,0.00015068,2]
[333368469,1722075052819,-500.0,0.00015068,2]
[333368470,1722075052828,-716.42,0.00015068,2]
[333368471,1722075052838,-500.0,0.00015068,2]
[333368472,1722075052848,-500.0,0.00015068,2]
[333368473,1722075052857,-611.75,0.00015068,2]
[333368474,1722075052868,-1350.04,0.00015068,2]
[333368475,1722075052877,-500.0,0.00015068,2]
[333368476,1722075052889,-1512.56,0.00015068,2]
[333368477,1722075052900,-809.85,0.00015068,2]
[333368478,1722075052909,-652.09,0.00015068,2]
[333368479,1722075052919,-500.0,0.00015068,2]
[333368480,1722075052930,-618.71,0.00015068,2]
[333368481,1722075052939,-981.28,0.00015068,2]
[333368482,1722075052950,-2141.38,0.00015068,2]
[333368483,1722075052959,-522.09,0.00015068,2]
[333368484,1722075052969,-1299.52,0.00015068,2]
[333368485,1722075052980,-894.06,0.00015068,2]
[333368486,1722075052989,-1018.98,0.00015068,2]
[333368487,1722075052999,-728.95,0.00015068,2]
[333368488,1722075053009,-714.09,0.00015068,2]
[333368489,1722075053021,-1085.31,0.00015068,2]
[333368490,1722075053030,-1080.39,0.00015068,2]
[333368491,1722075053040,-500.0,0.00015068,2]
[333368492,1722075053050,-500.0,0.00015068,2]
[333368493,1722075053062,-879.1,0.00015068,2]
[333368494,1722075053073,-1751.88,0.00015068,2]
[333368495,1722075053083,-1385.03,0.00015068,2]
[333368496,1722075053093,-1796.01,0.00015068,2]
[333368497,1722075053103,-656.36,0.00015068,2]
[333368498,1722075053112,-742.6,0.00015068,2]
[333368499,1722075053122,-1185.24,0.00015068,2]
[333368500,1722075053132,-2214.71,0.00015068,2]
[333368501,1722075053142,-620.26,0.00015068,2]
[333368502,1722075053151,-2657.5,0.00015068,2]
[333368503,1722075053162,-500.0,0.00015068,2]
[333368504,1722075053171,-500.0,0.00015068,2]
[333368505,1722075053181,-1646.35,0.00015068,2]
[333368506,1722075053191,-150.112233,0.000151,2]
[333368507,1722075053201,-150.112233,0.000153,2]
[333368508,1722075053211,-736.93,0.00015342,2]
[333368509,1722075053221,-500.0,0.00015342,2]
[333368510,1722075053231,-505.73468713,0.00015342,2]
[333368511,1722075053241,-664.43,0.00015342,2]
[333368512,1722075053250,-1156.56,0.00015342,2]
[333368513,1722075053260,-500.0,0.00015342,2]
[333368514,1722075053270,-500.0,0.00015342,2]
[333368515,1722075053279,-500.0,0.00015342,2]
[333368516,1722075053290,-151.0,0.00015342,2]
[333368517,1722075053300,-152.408321,0.00015342,2]
[333368518,1722075053309,-579.98,0.00015342,2]
[333368519,1722075053319,-500.0,0.00015342,2]
[333368520,1722075053329,-598.78,0.00015342,2]
[333368521,1722075053339,-151.0,0.00015342,2]
[333368522,1722075053349,-151.0,0.00015342,2]
[333368523,1722075053358,-151.0,0.00015342,2]
[333368524,1722075053369,-619.23,0.00015342,2]
[333368525,1722075053379,-733.76,0.00015342,2]
[333368526,1722075053388,-151.0,0.00015342,2]
[333368527,1722075053398,-500.0,0.00015342,2]
[333368528,1722075053408,-500.0,0.00015342,2]
[333368529,1722075053418,-500.0,0.00015342,2]
[333368530,1722075053433,-929.95,0.00015342,2]
[333368531,1722075053442,-1016.99,0.00015342,2]
[333368532,1722075053452,-792.56,0.00015342,2]
[333368533,1722075053462,-500.0,0.00015342,2]
[333368534,1722075053473,-1166.75,0.00015342,2]
[333368535,1722075053483,-908.42,0.00015342,2]
[333368536,1722075053493,-590.84,0.00015342,2]
[333368537,1722075053503,-500.0,0.00015342,2]
[333368538,1722075053512,-594.61,0.00015342,2]
[333368539,1722075053522,-500.0,0.00015342,2]
[333368540,1722075053533,-500.0,0.00015342,2]
[333368541,1722075053543,-500.0,0.00015342,2]
[333368542,1722075053552,-877.06,0.00015342,2]
[333368543,1722075053561,-151.0,0.00015342,2]
[333368544,1722075053571,-500.0,0.00015342,2]
[333368545,1722075053581,-151.0,0.00015342,2]
[333368546,1722075053592,-151.0,0.00015342,2]
[333368547,1722075053602,-4384.68,0.00015342,2]
[333368548,1722075053612,-1285.58,0.00015342,2]
[333368549,1722075053622,-928.85,0.00015342,2]
[333368550,1722075053631,-151.0,0.00015342,2]
[333368551,1722075053641,-179.607442,0.00015342,2]
[333368552,1722075053650,-179.607442,0.00015342,2]
[333368553,1722075053659,-1072.14,0.00015342,2]
[333368554,1722075053669,-349.37308224,0.00015342,2]
[333368555,1722075053678,-500.0,0.00015342,2]
[333368556,1722075053688,-1918.81,0.00015342,2]
[333368557,1722075053699,-500.0,0.00015342,2]
[333368558,1722075053710,-151.0,0.00015342,2]
[333368559,1722075053721,-1603.87,0.00015342,2]
[333368560,1722075053733,-541.25,0.00015342,2]
[333368561,1722075053744,-500.0,0.00015342,2]
[333368562,1722075053756,-6917.34,0.00015342,2]
[333368563,1722075053766,-500.0,0.00015342,2]
[333368564,1722075053775,-500.0,0.00015342,2]
[333368565,1722075053785,-3168.04,0.00015342,2]
[333368566,1722075053795,-1064.65,0.00015342,2]
[333368567,1722075053805,-500.0,0.00015342,2]
[333368568,1722075053815,-415.40742,0.00015342,2]
[333368569,1722075053824,-1430.94,0.00015342,2]
[333368570,1722075053834,-2202.23,0.00015342,2]
[333368571,1722075053845,-415.40742,0.00015342,2]
[333368572,1722075053854,-640.32,0.00015342,2]
[333368573,1722075053864,-1833.72,0.00015342,2]
[333368574,1722075053874,-786.3,0.00015342,2]
[333368575,1722075053884,-152.228824,0.00015342,2]
[333368576,1722075053895,-538.072234,0.00015342,2]
[333368577,1722075053905,-152.228824,0.00015342,2]
[333368578,1722075053916,-538.072234,0.00015342,2]
[333368579,1722075053926,-500.0,0.00015342,2]
[333368580,1722075053936,-716.42,0.00015342,2]
[333368581,1722075053947,-500.0,0.00015342,2]
[333368582,1722075053957,-500.0,0.00015342,2]
[333368583,1722075053967,-611.75,0.00015342,2]
[333368584,1722075053977,-923.059716,0.00015342,2]
[333368585,1722075053987,-1350.04,0.00015342,2]
[333368586,1722075053997,-923.059716,0.00015342,2]
[333368587,1722075054007,-500.0,0.00015342,2]
[333368588,1722075054018,-1512.56,0.00015342,2]
[333368589,1722075054027,-652.09,0.00015342,2]
[333368590,1722075054037,-809.85,0.00015342,2]
[333368591,1722075054047,-500.0,0.00015342,2]
[333368592,1722075054056,-618.71,0.00015342,2]
[333368593,1722075054066,-981.28,0.00015342,2]
[333368594,1722075054076,-2141.38,0.00015342,2]
[333368595,1722075054086,-522.09,0.00015342,2]
[333368596,1722075054097,-1299.52,0.00015342,2]
[333368597,1722075054106,-894.06,0.00015342,2]
[333368598,1722075054116,-1018.98,0.00015342,2]
[333368599,1722075054126,-728.95,0.00015342,2]